Cogmind - Beta 13 @@@ ROGUE MODE // 2024.04.21 @ 03:28:37 Player: GregoriusTechneticies Result: Destroyed by G-34 Mercenary with Small Laser Performance ------------- Evolutions (1) 500 Regions Visited (3) 600 Robots Destroyed (50) 250 Value Destroyed (611) 611 Prototype IDs (0) 0 Alien Tech Used (0) 0 Bonus (0) 0 TOTAL SCORE: 1961 Bonus ------- None Cogmind --------- Core Integrity 0/400 Matter 277/300 Energy 77/100 System Corruption 3% Temperature Cool (6) Movement Core (300) Ox5 Location -9/Materials Parts ------- > --- POWER (1) -------- (None) > --- PROPULSION (2) --- (None) > --- UTILITY (4) ------ Medium Storage Unit Terrain Scan Processor > --- WEAPON (2) ------- Beam Rifle Heavy Hammer > --- INVENTORY (10) --- Heat Sink Small Battery (100) High-capacity Matter Pod (19) Structural Scanner Machine Analyzer Seismic Detector Seismic Detector Utility Shielding Peak State ------------ > --- POWER ------------ Improved Ion Engine > --- PROPULSION ------- Wheel Wheel > --- UTILITY ---------- Medium Storage Unit Sensor Array Improved Terrain Scanner Terrain Scan Processor > --- WEAPON ----------- Assault Rifle Heavy Assault Rifle > --- INVENTORY -------- Backup Power I Small Battery Large Matter Pod Structural Scanner Seismic Detector Seismic Detector Utility Shielding Light Assault Rifle Plasma Cutter Heavy Hammer [Rating: 15] Favorites ----------- Power Light Ion Engine Engine Light Ion Engine Propulsion Wheel Wheel Wheel Utility Medium Storage Unit Device Seismic Detector Storage Medium Storage Unit Processor Terrain Scan Processor Weapon Assault Rifle Energy Gun Beam Rifle Ballistic Gun Assault Rifle Special Weapon Plasma Cutter Impact Weapon Heavy Hammer Build | -11 -10 -10 -9 ------- Run | Yrd Mat Min Mat Slots Evolved 2 | . . . 2 Power . | . . . . Propulsion . | . . . . Utility 2 | . . . 2 Weapon . | . . . . Parts Attached 45 | 7 16 7 15 Power 4 | 1 1 . 2 Engine 4 | 1 1 . 2 Core . | . . . . Reactor . | . . . . Propulsion 10 | 2 4 2 2 Treads . | . . . . Leg . | . . . . Wheel 10 | 2 4 2 2 Hover . | . . . . Flight . | . . . . Utility 10 | 2 3 1 4 Device 6 | 1 2 1 2 Storage 3 | 1 1 . 1 Processor 1 | . . . 1 Hackware . | . . . . Protection . | . . . . Artifact . | . . . . Weapon 21 | 2 8 4 7 Energy Gun 1 | . . . 1 Energy Cannon . | . . . . Ballistic Gun 16 | 2 7 4 3 Ballistic Cannon . | . . . . Launcher . | . . . . Special Weapon 3 | . 1 . 2 Impact Weapon 1 | . . . 1 Slashing Weapon . | . . . . Piercing Weapon . | . . . . Special Melee Weapon . | . . . . Unidentified Prototypes . | . . . . Parts Lost 10 | . 1 . 9 Power 1 | . . . 1 Propulsion 2 | . . . 2 Utility 3 | . 1 . 2 Weapon 4 | . . . 4 Highest Loss Streak 9 | . 1 . 9 To Critical Strikes . | . . . . Average Slot Usage (%) 94 | . 94 100 93 Engine 12 | . 14 14 10 Wheel 24 | . 28 28 20 Device 14 | . 8 14 20 Storage 12 | . 14 14 11 Processor 4 | . . . 11 Ballistic Gun 23 | . 27 28 17 Special Weapon 1 | . . . 2 Naked Turns . | . . . . Heaviest Build 24 | 12 18 18 24 Greatest Support 20 | 20 20 20 20 Greatest Overweight (x) 4 | . . . 4 Average Overweight (x) . | . . . . Largest Inventory Capacity 10 | 8 10 10 10 Average Capacity 9 | 7 9 10 10 Most Carried 10 | 8 10 10 10 Average Carried 8 | 5 8 10 9 Final Capacity 10 | 8 10 10 10 Final Carried 10 | 8 10 10 8 Class Distribution -------------------- 45% | Mutant 34% | Scavenger-Skirmisher 20% | Scavenger-Mutant Dominant Class ---------------- Mutant | -10/Materials Scavenger-Mutant | -10/Mines Scavenger-Skirmisher | -9/Materials Resources | -11 -10 -10 -9 ----------- Run | Yrd Mat Min Mat Matter Collected 1344 | 439 446 99 360 Remotely . | . . . . Salvage Created 1436 | 364 503 135 434 Parts 136 | 35 53 17 31 Haulers Intercepted 1 | . 1 . . Recyclers Shooed 8 | 1 6 1 . Parts Field Recycled . | . . . . Retrieved Matter . | . . . . Parts Self-Destructed . | . . . . Prevented . | . . . . Kills | -11 -10 -10 -9 ------- Run | Yrd Mat Min Mat Combat Hostiles Destroyed 17 | . 6 3 8 Guns 16 | . 6 3 7 Classes Destroyed 11 | 3 5 . 3 Worker 6 | 2 2 1 1 Builder 9 | . 5 3 1 Tunneler 9 | 9 . . . Hauler 1 | . 1 . . Recycler 4 | 1 3 . . Mechanic 1 | . . . 1 Watcher 3 | . 2 . 1 Swarmer 8 | . 5 3 . Grunt 6 | . 1 . 5 Brawler 1 | . . . 1 Sentry 2 | . . . 2 Best Kill Streak 6 | 6 5 6 4 Combat Bots Only 4 | . 4 3 4 Max Kills in Single Turn 2 | 1 2 1 1 Gunslinging . | . . . . Exploded . | . . . . Melee . | . . . . Uniques/NPCs Destroyed . | . . . . Combat | -11 -10 -10 -9 -------- Run | Yrd Mat Min Mat Hostile Shots Fired 174 | . 40 11 123 Missed 47 | . 10 1 36 Damage Taken 1359 | . 258 79 1022 Core 482 | . 78 . 404 Absorbed by Shields . | . . . . Core Remaining (%) 84 | 100 . 68 . Volleys Fired 167 | 44 76 15 32 Largest 2 | 2 2 2 2 Hottest 100 | 40 100 40 56 Shots Fired 316 | 88 149 30 49 Gun 311 | 88 146 30 47 Cannon . | . . . . Launcher . | . . . . Special 5 | . 3 . 2 Kinetic 310 | 88 146 30 46 Thermal 6 | . 3 . 3 Explosive . | . . . . Electromagnetic . | . . . . Robot Hit Streak 13 | 7 8 13 9 Robot Miss Streak 6 | 3 6 4 3 Penetration Max . | . . . . Secondary Targets 3 | . 2 1 . Max Gunslinging Chain 1 | . 1 1 . Shots Hit Robots 182 | 50 79 17 36 Core Hits 75 | 17 30 8 20 Critical Kills . | . . . . Critical Parts Destroyed 3 | 1 . . 2 Critical Strikes 3 | 1 . . 2 Destroy 1 | 1 . . . Smash 2 | . . . 2 Melee Attacks 5 | . . . 5 Impact 5 | . . . 5 Slashing . | . . . . Piercing . | . . . . Sneak Attacks . | . . . . Combat Hostiles . | . . . . Follow-up Attacks . | . . . . Damage Inflicted 2226 | 520 895 237 574 Guns 2103 | 520 895 237 451 Cannons . | . . . . Explosions . | . . . . Melee 123 | . . . 123 Ramming . | . . . . Kinetic 2089 | 520 895 237 437 Thermal 14 | . . . 14 Explosive . | . . . . Electromagnetic . | . . . . Impact 123 | . . . 123 Slashing . | . . . . Piercing . | . . . . Highest Corruption 3 | . . . 3 Average Corruption 3 | . . . 3 Corruption Purged . | . . . . Corruption Blocked . | . . . . Effects 1 | . . . 1 Heat Flow Errors 1 | . . . 1 Overload Shots . | . . . . Overflow Damage 85 | . . . 85 Projectiles . | . . . . Explosions . | . . . . Melee 85 | . . . 85 Knockbacks . | . . . . Impact . | . . . . Kinetic . | . . . . Secondary . | . . . . Self-Inflicted Damage . | . . . . Shots . | . . . . Rammed . | . . . . Targets Rammed . | . . . . Kicked . | . . . . Crushed . | . . . . Highest Temperature 212 | . 40 . 212 Average Temperature 41 | . 14 . 82 Received Heat Transfer 552 | . 42 . 510 Siege Activations . | . . . . Robots Corrupted . | . . . . Combat Hostiles . | . . . . Parts Fried . | . . . . Impact Corruptions 2 | . . . 2 Robots Melted . | . . . . Combat Hostiles . | . . . . Parts Melted . | . . . . Heat Transferred 37 | . . . 37 Parts Sabotaged . | . . . . Parts Stolen . | . . . . Parts Stripped . | . . . . Power Chain Reactions . | . . . . Alert | -11 -10 -10 -9 ------- Run | Yrd Mat Min Mat Peak Influence 207 | 60 204 105 207 Initial 40 | . 39 15 40 Average 89 | 32 136 82 64 Maximum Alert Level 1 | . 1 . 1 Low Security (%) 99 | 100 98 100 99 Level 1 . | . 1 . . Level 2 . | . . . . Level 3 . | . . . . Level 4 . | . . . . Level 5 . | . . . . High Security . | . . . . Max Security . | . . . . Squads Dispatched 5 | . 1 . 4 Investigation 1 | . . . 1 Extermination . | . . . . Reinforcement 4 | . 1 . 3 Assault . | . . . . Garrison . | . . . . Intercept . | . . . . Searches Triggered . | . . . . Construction Impeded . | . . . . Haulers Reinforced . | . . . . Active Scanning Responses . | . . . . Cargo Convoy Interrupts . | . . . . Stealth | -11 -10 -10 -9 --------- Run | Yrd Mat Min Mat Distress Signals 1 | . 1 . . Communications Jammed . | . . . . Distress Signals . | . . . . Times Spotted 39 | . 17 3 19 Peak Tracking Total 9 | . 6 3 9 Tactical Retreats 4 | . 2 . 2 Traps | -11 -10 -10 -9 ------- Run | Yrd Mat Min Mat Traps Triggered 1 | . . . 1 Indirectly . | . . . . Trap Hack Attempts . | . . . . Triggered . | . . . . Disarmed . | . . . . Reprogrammed . | . . . . Reused . | . . . . Traps Extracted . | . . . . Installed . | . . . . Triggered . | . . . . Machines | -11 -10 -10 -9 ---------- Run | Yrd Mat Min Mat Machines Disabled . | . . . . Max in Single Turn . | . . . . Machines Repaired . | . . . . Machines Dismantled 2 | . . . 2 Machines Sabotaged . | . . . . Overloaded Fab Kills . | . . . . Hacking | -11 -10 -10 -9 --------- Run | Yrd Mat Min Mat Machines Accessed 4 | . 4 . . Terminals 4 | . 4 . . Fabricators . | . . . . Repair Stations . | . . . . Recycling Units . | . . . . Scanalyzers . | . . . . Garrison Access . | . . . . Total Hacks 14 | . 14 . . Successful 6 | . 6 . . Failed 8 | . 8 . . Catastrophic 1 | . 1 . . Database Lockouts . | . . . . Manual 14 | . 14 . . Terminals 14 | . 14 . . Fabricators . | . . . . Repair Stations . | . . . . Recycling Units . | . . . . Scanalyzers . | . . . . Garrison Access . | . . . . Terminal Hacks 1 | . 1 . . Unreport Threat 1 | . 1 . . Fabricator Hacks . | . . . . Repair Station Hacks . | . . . . Recycling Unit Hacks . | . . . . Scanalyzer . | . . . . Garrison Access Hacks . | . . . . Unauthorized Hacks 5 | . 5 . . Terminals 5 | . 5 . . Assimilate 2 | . 2 . . Botnet 3 | . 3 . . Fabricators . | . . . . Repair Stations . | . . . . Recycling Units . | . . . . Scanalyzers . | . . . . Garrison Access . | . . . . Data Cores Recovered . | . . . . Used . | . . . . Hacking Detections 4 | . 4 . . Full Trace Events . | . . . . Feedback Events . | . . . . Feedback Blocked . | . . . . Robot Schematics Acquired . | . . . . Robots Built . | . . . . Authchips . | . . . . Time . | . . . . Total Robot Build Rating . | . . . . Part Schematics Acquired . | . . . . Parts Built . | . . . . Authchips . | . . . . Time . | . . . . Total Part Build Rating . | . . . . Parts Repaired . | . . . . Time . | . . . . Parts Recycled . | . . . . Recycled Matter . | . . . . Retrieved Matter . | . . . . Retrieved Components . | . . . . Parts Scanalyzed . | . . . . Part Schematics Acquired . | . . . . Parts Damaged . | . . . . Bothacking | -11 -10 -10 -9 ------------ Run | Yrd Mat Min Mat Used RIF Installer . | . . . . Robots Hacked . | . . . . Non-combat . | . . . . Combat . | . . . . Robot Hacks Applied . | . . . . Relay Couplers Released . | . . . . Fabnet Peak Effective % . | . . . . Robots Rewired . | . . . . Allies Hacked . | . . . . Hacks Repelled . | . . . . Allies | -11 -10 -10 -9 -------- Run | Yrd Mat Min Mat Total Allies 1 | . 1 . . Largest Group 1 | . 1 . . Highest-Rated Group 10 | . 10 . . Highest-Rated Ally 10 | . 10 . . Total Orders . | . . . . Ally Attacks . | . . . . Total Damage . | . . . . Kills . | . . . . Allies Corrupted . | . . . . Allies Melted . | . . . . Intel | -11 -10 -10 -9 ------- Run | Yrd Mat Min Mat Robot Analysis Total . | . . . . Derelict Logs Recovered 1 | . . 1 . Drone Launches . | . . . . Drone Recoveries . | . . . . Exploration | -11 -10 -10 -9 ------------- Run | Yrd Mat Min Mat Turns Passed 1962 | 321 790 128 723 Spaces Moved 1051 | 220 444 88 299 Core 6 | 2 . . 4 Treads . | . . . . Legs . | . . . . Wheels 1045 | 218 444 88 295 Hover . | . . . . Flight . | . . . . Fastest Speed 50 | 50 80 80 80 Average Speed 84 | 79 80 80 94 Slowest Speed 250 | 80 80 80 250 Overloaded Moves . | . . . . Propulsion Burnouts . | . . . . Robots Hopped . | . . . . Cave-ins Triggered . | . . . . Exploration Rate (%) 22 | 4 46 10 31 Regions Visited 3 Branch Regions 1 Pre-discovered Areas 1 | . . 1 . Known Exits Taken . | . . . . Unknown Exits Taken 3 | 1 1 1 . Scrap Searched . | . . . . Spaces Dug 3 | . 3 . . Terrain Destroyed 3 | . 3 . . Melee . | . . . . Projectile 3 | . 3 . . AOE . | . . . . Terrain Rammed . | . . . . Walls Destroyed . | . . . . Machines Disabled . | . . . . Actions | -11 -10 -10 -9 --------- Run | Yrd Mat Min Mat Total 1763 | 296 742 120 605 Wait 377 | . 183 . 194 Move 1048 | 219 443 87 299 Hop . | . . . . Pick Up 38 | 17 10 2 9 Fast Attach 10 | 7 . 2 1 Attach 8 | . 1 . 7 Detach 1 | . . . 1 Swap 27 | . 15 5 7 Drop 42 | 9 14 9 10 Fire 167 | 44 76 15 32 Melee 5 | . . . 5 Ram . | . . . . Kick . | . . . . Crush . | . . . . Escape Stasis . | . . . . Rewire . | . . . . Trap . | . . . . Miscellaneous 40 | . . . 40 Route ------- -11/Scrapyard -10/Materials (discovered 2 exits: [*Min] / [Sub]) -10/Mines -9/Materials History --------- Turn | Location | Event 26 | -11/Scrapyard | Discovered new exit (range 16) 322 | -11/Scrapyard | Entered Materials 362 | -10/Materials | Build established: Mutant 727 | -10/Materials | Discovered new exit (range 13) 1062 | -10/Materials | Discovered new exit (range 7) 1112 | -10/Materials | Entered Mines 1117 | -10/Mines | Met a Derelict bent on vengeance 1129 | -10/Mines | Discovered new exit (range 4) 1158 | -10/Mines | Build established: Scavenger-Mutant 1240 | -10/Mines | Entered Materials 1240 | -9/Materials | Evolved 2 slots: Utility x2 1526 | -9/Materials | Build established: Scavenger-Skirmisher 1944 | -9/Materials | Core integrity fell below 50% 1956 | -9/Materials | Core integrity fell below 20% 1963 | -9/Materials | Destroyed by G-34 Mercenary with Small Laser Last Messages --------------- 01923_ G-34 Mercenary destroyed. 01926_ Assault Rifle destroyed. 01929_ Acquired 32 matter. 01939_ Plasma Cutter destroyed. 01946_ G-34 Mercenary suffers critical hit (Smash). 01946_ Destroyed Ion Engine. 01946_ G-34 Mercenary system corrupted by crushing effect. 01951_ G-34 Mercenary IFF system glitched. 01953_ G-34 Mercenary destroyed. 01954_ G-34 Mercenary suffers critical hit (Smash). 01954_ Destroyed Sml. Laser. 01954_ G-34 Mercenary system corrupted by crushing effect. 01955_ G-34 Mercenary system terminally corrupted. 01957_ Acquired Heat Sink. 01960_ Acquired Beam Rifle. Map ----- +----------------------------------------------------+ | # #?????#????? ??? ##??????????????? | | # ####??##??? ?? # ??????????????? | | + ###??? ? ???? #???????????????? | | """ # ###?#????? ?? # ??????????????? | | """ ## ####### ############# #???????????????? | | """ ## ##?##?# #?# ## +???????????????? | | ######## ##?#### ### """ ## #??"????????????? | | ########+####### ### """ ## ##??????????????? | | ##?## ### ### """ # #???#????#?????? | | ##### """ ### ### # #??#??#????????? | | ##### """ ### ### """ + #??????#???????? | | ?#### """ # + """ * # #??????????????? | | ##### # # """ # #????#?????????? | | ##### """ # # ## ##??????????????? | | #?### """ + ########### #???????????????? | | #?### """ # ##?? ?? ## #?????#?? ??????? | | ##### # #? ## #???????????????? | | ###?########## ##? ?? ## #?#?????????????? | | ###########?# # ?? ?# #???????????????? | | ##?########## ##+####### ###### ??????? | | ####??####### + ""??????? | | ########?#?## T ###### ""???????? | | ?####?####?## #??????"????????? | | #########?### ###########+####### ?????????? | | ############# ##??#% g #??????????? | | ####?######?#########?###@ """ """ #??????????? | | #####??##?###############%!""""""""" #??????????? | | ?????#??#?###?###########=!g[=""""" #??????????? | | ??#??##?##?#####?########[=**=%=[ #?#????????? | | ????####?#?###########?## [= !%=%* #??????????? | | ?????####?####??####???################??????????? | | | | | | | | | | | | | | | | | | | | | | | | | | | | | | | | | | | | | | | +----------------------------------------------------+ Best States ------------- Heat Dissipation 28 Energy Generation 12 Energy Capacity 265 Matter Stores 300 Matter Capacity 300 Sight Range 16 Robot Scan Range 14 Terrain Scan Range 16 Terrain Scan Density 85 Evasion (%) 44 Item Schematics ----------------- None Robot Schematics ------------------ None Fabricated ------------ Nothing Alien Tech Used ----------------- None Achievements -------------- None Challenges ------------ None Game ------ Seed PlasmaCoilDerivative Manual? 0 Play Time 00:21:18 Cumulative 45.3 hours Start 2024.04.21 @ 03:05:42 End 2024.04.21 @ 03:28:37 Sessions 1 Manual Loads 0 Difficulty Rogue Special Mode None Game No. 67 Rogue 52 Adventurer 0 Explorer 15 Win Type - Total 0 Types 0/0/0/0/0/0/0/0/0 Lore% 25 Gallery% 35 Achievement% 26 Wizard Run 0 Options --------- Layout 1 ASCII 0 Keyboard 0 Movement Mouse Keybinds 0 Fullscreen 1 Font 24/Smallcaps Map View 50x35 Zoom Use 0% Tactical HUD 1 Map Filters NONE Filters NONE Steam 1 RUN: 39179630-88b7-4a7d-8a4f-f0fa076a00e3